[Event "44th Chess Olympiad Women 2022"]
[Site "Chennai"]
[Date "2022.08.05"]
[Round "7.17"]
[White "Guindy, Esmat Susanne"]
[Black "Yao, Lan"]
[Result "0-1"]
[WhiteElo "2097"]
[BlackElo "2274"]
[Annotator "NA RC"]
[PlyCount "112"]
[EventDate "2022.??.??"]
[TimeControl "60"]

1. d4 {[%emt 0:00:03]} Nf6 {[%emt 0:00:04]} 2. g3 {[%emt 0:00:09]} d5 {[%emt 0:
00:00]} 3. Bg2 {[%emt 0:00:11]} e6 {[%emt 0:00:05]} 4. c4 {[%emt 0:01:11]} dxc4
{[%emt 0:00:16]} 5. Qa4+ {[%emt 0:03:32]} Nbd7 {[%emt 0:01:10]} 6. Qxc4 {
[%emt 0:04:21]} a6 {[%emt 0:00:05]} 7. Nf3 {[%emt 0:05:00]} b5 {[%emt 0:01:26]}
8. Qc2 {[%emt 0:03:11]} Bb7 {[%emt 0:00:08]} 9. O-O {[%emt 0:01:03]} Be7 {
[%emt 0:01:14]} 10. Nc3 {[%emt 0:01:04]} O-O {[%emt 0:01:45]} 11. e4 {[%emt 0:
00:00]} b4 {[%emt 0:13:28]} 12. e5 {[%emt 0:01:49]} bxc3 {[%emt 0:00:05]} 13.
exf6 {[%emt 0:00:06]} Nxf6 {[%emt 0:01:01]} 14. bxc3 {[%emt 0:03:56]} c5 {
[%emt 0:02:53]} 15. Rd1 {[%emt 0:10:31]} Rc8 {[%emt 0:05:32]} 16. Qb3 {[%emt 0:
00:00]} Be4 {[%emt 0:05:08]} 17. Qa4 {[%emt 0:04:54]} Qd5 {[%emt 0:03:19]} 18.
c4 {[%emt 0:02:13]} Qh5 {[%emt 0:07:44]} 19. Ne1 {[%emt 0:08:08]} cxd4 {
[%emt 0:07:31]} 20. Rxd4 {[%emt 0:08:27]} Bc5 {[%emt 0:03:38]} 21. Rxe4 {
[%emt 0:01:08]} Nxe4 {[%emt 0:00:05]} 22. Bxe4 {[%emt 0:00:32]} Qe2 {[%emt 0:
00:00]} 23. Qc2 {[%emt 0:11:31]} Qxe1+ {[%emt 0:00:31]} 24. Kg2 {[%emt 0:00:05]
} f5 {[%emt 0:03:00]} 25. Bf3 {[%emt 0:00:30]} Qe5 {[%emt 0:02:29]} 26. Rb1 {
[%emt 0:00:20]} Bd4 {[%emt 0:05:55]} 27. Bb7 {[%emt 0:07:40]} Rcd8 {[%emt 0:00:
00]} 28. Rb3 {[%emt 0:03:53]} Rf7 {[%emt 0:06:42]} 29. Bxa6 {[%emt 0:01:21]}
Qe4+ {[%emt 0:03:05]} 30. Qxe4 {[%emt 0:00:07]} fxe4 {[%emt 0:00:02]} 31. Be3 {
[%emt 0:03:19]} Bxe3 {[%emt 0:01:47]} 32. Rxe3 {[%emt 0:00:09]} Ra8 {[%emt 0:
00:00]} 33. Bb5 {[%emt 0:00:18]} Rxa2 {[%emt 0:00:04]} 34. c5 {[%emt 0:00:51]}
Rfxf2+ {[%emt 0:00:44]} 35. Kh3 {[%emt 0:00:15]} Rxh2+ {[%emt 0:02:33]} 36. Kg4
{[%emt 0:00:10]} Rac2 {[%emt 0:02:53]} 37. Bd7 {[%emt 0:01:20]} Rxc5 {[%emt 0:
00:00]} 38. Bxe6+ {[%emt 0:00:13]} Kf8 {[%emt 0:00:06]} 39. Rxe4 {[%emt 0:00:
00]} Rf2 {[%emt 0:01:30]} 40. Kh3 {[%emt 0:00:52]} Rc3 {[%emt 0:01:27]} 41. Bd5
{[%emt 0:09:57]} Rf5 {[%emt 0:02:49]} 42. Rd4 {[%emt 0:02:20]} g6 {[%emt 0:00:
00]} 43. Kh4 {[%emt 0:00:58]} Kg7 {[%emt 0:01:22]} 44. Be4 {[%emt 0:01:49]} Ra5
{[%emt 0:04:57]} 45. Bb1 {[%emt 0:03:20]} Kh6 {[%emt 0:00:48]} 46. Kh3 {
[%emt 0:01:11]} Ra1 {[%emt 0:01:28]} 47. Rb4 {[%emt 0:00:53]} Raa3 {[%emt 0:00:
00]} 48. Rh4+ {[%emt 0:00:13]} Kg7 {[%emt 0:00:05]} 49. Rg4 {[%emt 0:00:06]}
Ra1 {[%emt 0:02:58]} 50. Rb4 {[%emt 0:00:26]} Rc1 {[%emt 0:00:40]} 51. Be4 {
[%emt 0:00:52]} Re1 {[%emt 0:00:08]} 52. Kh4 {[%emt 0:03:45]} Kh6 {[%emt 0:00:
00]} 53. g4 {[%emt 0:01:41]} Ra5 {[%emt 0:00:28]} 54. Bb1 {[%emt 0:00:53]} Rh1+
{[%emt 0:02:14]} 55. Kg3 {[%emt 0:00:07]} Kg5 {[%emt 0:00:28]} 56. Be4 {
[%emt 0:01:29]} Rg1+ {[%emt 0:02:42]} 0-1

[Event "44th Chess Olympiad Women 2022"]
[Site "Chennai"]
[Date "2022.08.05"]
[Round "7.17"]
[White "Houska, Jovanka"]
[Black "Nilssen, Ellen Fredericia"]
[Result "1/2-1/2"]
[WhiteElo "2360"]
[BlackElo "2142"]
[Annotator "ChessBase"]
[PlyCount "130"]
[EventDate "2022.??.??"]
[TimeControl "60"]

1. d4 {[%emt 0:00:03]} Nf6 {[%emt 0:00:14]} 2. Nf3 {[%emt 0:00:14]} g6 {
[%emt 0:00:24]} 3. Nbd2 {[%emt 0:00:03]} d5 {[%emt 0:00:27]} 4. e3 {[%emt 0:00:
00]} Bg7 {[%emt 0:01:45]} 5. b4 {[%emt 0:00:47]} O-O {[%emt 0:01:23]} 6. c4 {
[%emt 0:00:07]} b6 {[%emt 0:06:23]} 7. Bb2 {[%emt 0:01:06]} c5 {[%emt 0:11:18]}
8. bxc5 {[%emt 0:05:05]} bxc5 {[%emt 0:03:03]} 9. dxc5 {[%emt 0:00:09]} Qc7 {
[%emt 0:03:40]} 10. Nb3 {[%emt 0:07:22]} Rd8 {[%emt 0:13:37]} 11. Qc1 {[%emt 0:
00:00]} a5 {[%emt 0:00:21]} 12. Be5 {[%emt 0:17:41]} Qa7 {[%emt 0:00:35]} 13.
Nfd4 {[%emt 0:10:03]} Qb7 {[%emt 0:12:01]} 14. Rb1 {[%emt 0:05:04]} Qd7 {
[%emt 0:06:47]} 15. Be2 {[%emt 0:09:30]} dxc4 {[%emt 0:02:42]} 16. Nd2 {
[%emt 0:01:19]} Nc6 {[%emt 0:03:21]} 17. Nxc4 {[%emt 0:17:44]} Nxd4 {[%emt 0:
00:00]} 18. Bxd4 {[%emt 0:01:58]} Qe6 {[%emt 0:05:18]} 19. Nb6 {[%emt 0:06:23]}
Ra7 {[%emt 0:00:16]} 20. O-O {[%emt 0:01:57]} Bb7 {[%emt 0:04:19]} 21. Rd1 {
[%emt 0:00:57]} Ne4 {[%emt 0:03:31]} 22. Bxg7 {[%emt 0:03:40]} Rxd1+ {[%emt 0:
00:00]} 23. Qxd1 {[%emt 0:00:13]} Kxg7 {[%emt 0:00:07]} 24. Qd4+ {[%emt 0:00:
00]} f6 {[%emt 0:00:36]} 25. Rb2 {[%emt 0:01:36]} Qf5 {[%emt 0:04:35]} 26. f3 {
[%emt 0:00:15]} Nxc5 {[%emt 0:00:33]} 27. Na4 {[%emt 0:00:14]} Nxa4 {[%emt 0:
00:00]} 28. Rb5 {[%emt 0:00:34]} Qc2 {[%emt 0:00:59]} 29. Qxa7 {[%emt 0:01:03]}
Qxe2 {[%emt 0:00:07]} 30. Rb1 {[%emt 0:00:03]} Nc3 {[%emt 0:02:29]} 31. Qxb7 {
[%emt 0:00:56]} Qxe3+ {[%emt 0:00:10]} 32. Kh1 {[%emt 0:00:02]} Nxb1 {[%emt 0:
00:00]} 33. Qxb1 {[%emt 0:00:02]} a4 {[%emt 0:00:43]} 34. h3 {[%emt 0:00:47]}
a3 {[%emt 0:02:45]} 35. Qb4 {[%emt 0:00:42]} h5 {[%emt 0:01:28]} 36. Qc4 {
[%emt 0:00:30]} g5 {[%emt 0:01:40]} 37. Qc2 {[%emt 0:00:39]} g4 {[%emt 0:04:18]
} 38. hxg4 {[%emt 0:00:27]} hxg4 {[%emt 0:00:07]} 39. fxg4 {[%emt 0:00:21]}
Qe1+ {[%emt 0:00:28]} 40. Kh2 {[%emt 0:00:05]} Qh4+ {[%emt 0:00:55]} 41. Kg1 {
[%emt 0:30:04]} Qxg4 {[%emt 0:02:41]} 42. Qd3 {[%emt 0:00:00]} Qb4 {[%emt 0:00:
00]} 43. Kf1 {[%emt 0:00:00]} e5 {[%emt 0:03:41]} 44. Qd7+ {[%emt 0:00:00]} Kh6
{[%emt 0:00:37]} 45. Qf7 {[%emt 0:00:00]} Qd6 {[%emt 0:04:02]} 46. Ke2 {
[%emt 0:00:00]} e4 {[%emt 0:00:37]} 47. Ke3 {[%emt 0:01:12]} Qg3+ {[%emt 0:00:
00]} 48. Kxe4 {[%emt 0:00:07]} Qxg2+ {[%emt 0:00:05]} 49. Kd4 {[%emt 0:02:29]}
Qb2+ {[%emt 0:03:28]} 50. Ke3 {[%emt 0:01:03]} Qb6+ {[%emt 0:00:50]} 51. Kf3 {
[%emt 0:00:42]} Qd6 {[%emt 0:00:28]} 52. Qg8 {[%emt 0:00:19]} Qd3+ {[%emt 0:00:
00]} 53. Kf2 {[%emt 0:00:28]} f5 {[%emt 0:02:51]} 54. Qf7 {[%emt 0:01:27]} Kg5
{[%emt 0:01:24]} 55. Qg8+ {[%emt 0:00:23]} Kf4 {[%emt 0:01:08]} 56. Qb8+ {
[%emt 0:00:15]} Ke4 {[%emt 0:00:07]} 57. Qb7+ {[%emt 0:00:10]} Kd4 {[%emt 0:00:
00]} 58. Qb4+ {[%emt 0:00:15]} Kd5 {[%emt 0:00:22]} 59. Qb7+ {[%emt 0:00:54]}
Kc5 {[%emt 0:01:07]} 60. Qa7+ {[%emt 0:01:10]} Kb4 {[%emt 0:04:02]} 61. Qe7+ {
[%emt 0:00:05]} Kc4 {[%emt 0:00:20]} 62. Qc7+ {[%emt 0:00:08]} Kd4 {[%emt 0:00:
00]} 63. Qd6+ {[%emt 0:00:04]} Ke4 {[%emt 0:00:07]} 64. Qc6+ {[%emt 0:00:45]}
Qd5 {[%emt 0:01:27]} 65. Qe8+ {[%emt 0:01:08]} Qe5 {[%emt 0:01:26]} 1/2-1/2

[Event "44th Chess Olympiad Women 2022"]
[Site "Chennai"]
[Date "2022.08.05"]
[Round "7.17"]
[White "Kalaiyalahan, Akshaya"]
[Black "Kakulidis, Ellen"]
[Result "1-0"]
[WhiteElo "2158"]
[BlackElo "2057"]
[Annotator "ChessBase"]
[PlyCount "85"]
[EventDate "2022.??.??"]
[TimeControl "60"]

1. Nf3 {[%emt 0:00:04]} d5 {[%emt 0:00:06]} 2. e3 {[%emt 0:00:10]} c5 {[%emt 0:
00:00]} 3. d4 {[%emt 0:00:20]} e6 {[%emt 0:01:10]} 4. Be2 {[%emt 0:00:41]} Nf6
{[%emt 0:00:33]} 5. O-O {[%emt 0:00:12]} Nc6 {[%emt 0:02:29]} 6. b3 {[%emt 0:
00:00]} cxd4 {[%emt 0:09:14]} 7. exd4 {[%emt 0:01:29]} Bd6 {[%emt 0:03:14]} 8.
Bg5 {[%emt 0:01:05]} O-O {[%emt 0:05:52]} 9. c3 {[%emt 0:02:03]} h6 {[%emt 0:
00:00]} 10. Bh4 {[%emt 0:00:15]} Be7 {[%emt 0:02:13]} 11. Nbd2 {[%emt 0:01:50]}
b6 {[%emt 0:09:18]} 12. Bd3 {[%emt 0:01:06]} Bb7 {[%emt 0:02:56]} 13. Qe2 {
[%emt 0:01:03]} Rc8 {[%emt 0:01:37]} 14. Rac1 {[%emt 0:06:43]} Nd7 {[%emt 0:00:
00]} 15. Bg3 {[%emt 0:02:21]} Ba3 {[%emt 0:06:58]} 16. Rcd1 {[%emt 0:02:07]} a5
{[%emt 0:00:45]} 17. Nb1 {[%emt 0:02:34]} Be7 {[%emt 0:03:05]} 18. a4 {[%emt 0:
00:00]} Re8 {[%emt 0:01:37]} 19. Bf4 {[%emt 0:10:07]} Bf6 {[%emt 0:08:39]} 20.
Ne5 {[%emt 0:06:36]} Ncxe5 {[%emt 0:01:37]} 21. dxe5 {[%emt 0:00:26]} Bg5 {
[%emt 0:00:56]} 22. Bxg5 {[%emt 0:10:04]} Qxg5 {[%emt 0:00:01]} 23. f4 {
[%emt 0:00:41]} Qe7 {[%emt 0:00:12]} 24. Rfe1 {[%emt 0:06:09]} Nc5 {[%emt 0:00:
00]} 25. Bc2 {[%emt 0:06:27]} Red8 {[%emt 0:02:33]} 26. Rd4 {[%emt 0:05:22]}
Ba6 {[%emt 0:01:52]} 27. Qe3 {[%emt 0:00:33]} b5 {[%emt 0:06:51]} 28. axb5 {
[%emt 0:00:52]} Bxb5 {[%emt 0:01:49]} 29. Nd2 {[%emt 0:01:47]} Qc7 {[%emt 0:00:
00]} 30. Rc1 {[%emt 0:03:00]} Bc6 {[%emt 0:03:58]} 31. Nf3 {[%emt 0:04:14]} Qb6
{[%emt 0:01:09]} 32. Rdd1 {[%emt 0:00:48]} Rb8 {[%emt 0:01:16]} 33. Nd4 {
[%emt 0:00:34]} Bb7 {[%emt 0:00:33]} 34. Rb1 {[%emt 0:01:53]} Nd7 {[%emt 0:00:
00]} 35. Qd3 {[%emt 0:00:37]} g6 {[%emt 0:00:30]} 36. Qg3 {[%emt 0:01:10]} Kg7
{[%emt 0:00:17]} 37. Kh1 {[%emt 0:00:21]} Rbc8 {[%emt 0:00:46]} 38. f5 {
[%emt 0:03:04]} Nf8 {[%emt 0:00:23]} 39. Rf1 {[%emt 0:06:25]} Qc7 {[%emt 0:00:
00]} 40. fxe6 {[%emt 0:02:16]} Nxe6 {[%emt 0:00:30]} 41. Nxe6+ {[%emt 0:30:22]}
fxe6 {[%emt 0:30:30]} 42. Qxg6+ {[%emt 0:00:08]} Kh8 {[%emt 0:00:22]} 43. Rf7 {
[%emt 0:00:11]} 1-0

[Event "44th Chess Olympiad Women 2022"]
[Site "Chennai"]
[Date "2022.08.05"]
[Round "7.17"]
[White "Steffensen, Elena"]
[Black "Varney, Zoe"]
[Result "0-1"]
[WhiteElo "2044"]
[BlackElo "2045"]
[Annotator "NA RC"]
[PlyCount "112"]
[EventDate "2022.??.??"]
[TimeControl "60"]

1. e4 {[%emt 0:00:03]} e5 {[%emt 0:00:06]} 2. Nf3 {[%emt 0:00:04]} Nc6 {
[%emt 0:00:08]} 3. d4 {[%emt 0:00:06]} exd4 {[%emt 0:00:05]} 4. Bc4 {[%emt 0:
00:00]} Nf6 {[%emt 0:00:11]} 5. e5 {[%emt 0:00:10]} Ne4 {[%emt 0:00:12]} 6. Qe2
{[%emt 0:03:04]} Nc5 {[%emt 0:00:10]} 7. O-O {[%emt 0:02:42]} Ne6 {[%emt 0:00:
00]} 8. Rd1 {[%emt 0:04:35]} d5 {[%emt 0:00:37]} 9. exd6 {[%emt 0:00:25]} Bxd6
{[%emt 0:00:06]} 10. c3 {[%emt 0:10:01]} dxc3 {[%emt 0:02:58]} 11. Nxc3 {
[%emt 0:03:08]} O-O {[%emt 0:06:59]} 12. Ne4 {[%emt 0:05:24]} Re8 {[%emt 0:00:
00]} 13. Nxd6 {[%emt 0:06:58]} cxd6 {[%emt 0:00:10]} 14. Qd3 {[%emt 0:02:03]}
Ne5 {[%emt 0:11:44]} 15. Qe2 {[%emt 0:12:28]} Qc7 {[%emt 0:06:49]} 16. Nxe5 {
[%emt 0:04:22]} dxe5 {[%emt 0:00:21]} 17. Bb5 {[%emt 0:01:22]} Re7 {[%emt 0:00:
00]} 18. Be3 {[%emt 0:05:28]} Nd4 {[%emt 0:18:35]} 19. Bxd4 {[%emt 0:03:43]}
exd4 {[%emt 0:00:06]} 20. Qd2 {[%emt 0:04:47]} Qb6 {[%emt 0:04:41]} 21. a4 {
[%emt 0:02:50]} Bd7 {[%emt 0:10:02]} 22. Bf1 {[%emt 0:02:55]} Re4 {[%emt 0:00:
00]} 23. a5 {[%emt 0:02:05]} Qd6 {[%emt 0:01:58]} 24. Ra3 {[%emt 0:06:34]} Bc6
{[%emt 0:02:25]} 25. f3 {[%emt 0:03:21]} Rf4 {[%emt 0:00:32]} 26. Qf2 {[%emt 0:
00:00]} Qf6 {[%emt 0:02:32]} 27. Be2 {[%emt 0:05:41]} Rd8 {[%emt 0:00:07]} 28.
a6 {[%emt 0:02:08]} b6 {[%emt 0:00:28]} 29. b4 {[%emt 0:01:25]} d3 {[%emt 0:00:
00]} 30. Raxd3 {[%emt 0:03:38]} Rxd3 {[%emt 0:00:05]} 31. Bxd3 {[%emt 0:00:08]}
Rxb4 {[%emt 0:00:58]} 32. Qd2 {[%emt 0:00:05]} Rb2 {[%emt 0:02:24]} 33. Qe3 {
[%emt 0:00:49]} g6 {[%emt 0:00:07]} 34. Be4 {[%emt 0:00:37]} Bxe4 {[%emt 0:00:
00]} 35. Qxe4 {[%emt 0:00:02]} Qg5 {[%emt 0:00:51]} 36. f4 {[%emt 0:00:06]}
Qc5+ {[%emt 0:00:08]} 37. Kh1 {[%emt 0:00:07]} Qc3 {[%emt 0:00:55]} 38. h3 {
[%emt 0:00:22]} Kg7 {[%emt 0:00:23]} 39. Rd3 {[%emt 0:00:31]} Qf6 {[%emt 0:00:
00]} 40. Rd7 {[%emt 0:00:47]} Rf2 {[%emt 0:00:36]} 41. Rxa7 {[%emt 0:02:52]}
Rxf4 {[%emt 0:00:55]} 42. Qe3 {[%emt 0:00:57]} Rf1+ {[%emt 0:03:50]} 43. Kh2 {
[%emt 0:00:01]} Qd6+ {[%emt 0:00:18]} 44. g3 {[%emt 0:00:02]} Qd5 {[%emt 0:00:
00]} 45. g4 {[%emt 0:01:40]} g5 {[%emt 0:05:20]} 46. Kg3 {[%emt 0:00:11]} Rd1 {
[%emt 0:04:54]} 47. Qc3+ {[%emt 0:03:44]} Kg6 {[%emt 0:00:31]} 48. Qc2+ {
[%emt 0:00:04]} Rd3+ {[%emt 0:00:42]} 49. Kh2 {[%emt 0:01:10]} Qe5+ {[%emt 0:
00:00]} 50. Kh1 {[%emt 0:00:26]} Qe4+ {[%emt 0:04:29]} 51. Kh2 {[%emt 0:00:29]}
Qf4+ {[%emt 0:01:13]} 52. Kh1 {[%emt 0:00:22]} Qf1+ {[%emt 0:00:19]} 53. Kh2 {
[%emt 0:00:11]} Qxh3+ {[%emt 0:00:07]} 54. Kg1 {[%emt 0:00:04]} Qxg4+ {[%emt 0:
00:00]} 55. Kf2 {[%emt 0:00:14]} Qd4+ {[%emt 0:01:19]} 56. Ke2 {[%emt 0:00:19]}
Qe4+ {[%emt 0:00:12]} 0-1

[Event "44th Chess Olympiad Women 2022"]
[Site "Chennai"]
[Date "2022.08.05"]
[Round "7.18"]
[White "Brunello, Marina"]
[Black "Kanyamarala, Trisha"]
[Result "1/2-1/2"]
[WhiteElo "2341"]
[BlackElo "2270"]
[Annotator "ChessBase"]
[PlyCount "75"]
[EventDate "2022.??.??"]
[TimeControl "60"]

1. e4 {[%emt 0:00:06]} c5 {[%emt 0:00:15]} 2. Nf3 {[%emt 0:00:17]} Nc6 {
[%emt 0:00:08]} 3. d4 {[%emt 0:00:22]} cxd4 {[%emt 0:00:07]} 4. Nxd4 {[%emt 0:
00:00]} Nf6 {[%emt 0:00:11]} 5. Nc3 {[%emt 0:00:09]} d6 {[%emt 0:00:17]} 6. Bg5
{[%emt 0:00:15]} e6 {[%emt 0:00:10]} 7. Qd2 {[%emt 0:00:30]} a6 {[%emt 0:00:17]
} 8. O-O-O {[%emt 0:00:39]} Be7 {[%emt 0:01:36]} 9. Nxc6 {[%emt 0:03:47]} bxc6
{[%emt 0:00:08]} 10. Bf4 {[%emt 0:00:03]} e5 {[%emt 0:04:42]} 11. Bg5 {[%emt 0:
00:00]} Qa5 {[%emt 0:03:51]} 12. Bxf6 {[%emt 0:04:03]} gxf6 {[%emt 0:01:12]}
13. Bc4 {[%emt 0:00:39]} h5 {[%emt 0:04:46]} 14. Bb3 {[%emt 0:08:33]} Be6 {
[%emt 0:09:18]} 15. Kb1 {[%emt 0:00:58]} Rb8 {[%emt 0:04:03]} 16. Qd3 {[%emt 0:
00:00]} Rg8 {[%emt 0:09:28]} 17. g3 {[%emt 0:02:29]} Qb6 {[%emt 0:04:27]} 18.
f3 {[%emt 0:08:46]} a5 {[%emt 0:07:23]} 19. Na4 {[%emt 0:01:55]} Qb5 {[%emt 0:
00:00]} 20. Qe3 {[%emt 0:04:11]} Qb4 {[%emt 0:11:08]} 21. f4 {[%emt 0:12:20]}
Rg4 {[%emt 0:12:03]} 22. h3 {[%emt 0:07:51]} Rg8 {[%emt 0:01:11]} 23. Ka1 {
[%emt 0:03:16]} h4 {[%emt 0:08:12]} 24. gxh4 {[%emt 0:03:50]} exf4 {[%emt 0:00:
00]} 25. Qxf4 {[%emt 0:00:11]} c5 {[%emt 0:00:14]} 26. Nc3 {[%emt 0:03:01]} c4
{[%emt 0:03:46]} 27. Ba4+ {[%emt 0:00:42]} Kd8 {[%emt 0:00:13]} 28. Rb1 {
[%emt 0:00:25]} Qc5 {[%emt 0:00:45]} 29. Nd5 {[%emt 0:02:55]} Bxd5 {[%emt 0:00:
00]} 30. exd5 {[%emt 0:00:05]} Rb4 {[%emt 0:00:15]} 31. Bc6 {[%emt 0:01:03]} c3
{[%emt 0:00:24]} 32. Qc1 {[%emt 0:02:38]} cxb2+ {[%emt 0:01:37]} 33. Rxb2 {
[%emt 0:00:05]} Rxb2 {[%emt 0:02:57]} 34. Qxb2 {[%emt 0:00:16]} Rg1+ {[%emt 0:
00:00]} 35. Rxg1 {[%emt 0:00:06]} Qxg1+ {[%emt 0:00:04]} 36. Qb1 {[%emt 0:00:
00]} Qd4+ {[%emt 0:00:10]} 37. Qb2 {[%emt 0:00:03]} Qg1+ {[%emt 0:00:07]} 38.
Qb1 {[%emt 0:00:05]} 1/2-1/2

[Event "44th Chess Olympiad Women 2022"]
[Site "Chennai"]
[Date "2022.08.05"]
[Round "7.18"]
[White "Gueci, Tea"]
[Black "Putar, Lara"]
[Result "1-0"]
[WhiteElo "2254"]
[BlackElo "1969"]
[Annotator "NA RC"]
[PlyCount "117"]
[EventDate "2022.??.??"]
[TimeControl "60"]

1. e4 {[%emt 0:00:03]} e6 {[%emt 0:00:05]} 2. d4 {[%emt 0:00:03]} d5 {[%emt 0:
00:00]} 3. Nd2 {[%emt 0:00:06]} c5 {[%emt 0:00:13]} 4. Ngf3 {[%emt 0:00:08]}
Nc6 {[%emt 0:00:17]} 5. exd5 {[%emt 0:03:13]} exd5 {[%emt 0:00:31]} 6. Bb5 {
[%emt 0:02:43]} Qe7+ {[%emt 0:00:25]} 7. Be2 {[%emt 0:07:01]} Qc7 {[%emt 0:00:
00]} 8. O-O {[%emt 0:00:40]} Nf6 {[%emt 0:00:22]} 9. Re1 {[%emt 0:01:27]} cxd4
{[%emt 0:00:10]} 10. Nb3 {[%emt 0:07:31]} Bb4 {[%emt 0:00:53]} 11. Bd2 {
[%emt 0:04:42]} Bxd2 {[%emt 0:00:40]} 12. Qxd2 {[%emt 0:01:00]} O-O {[%emt 0:
00:00]} 13. Bd3 {[%emt 0:02:22]} Bg4 {[%emt 0:25:50]} 14. Nbxd4 {[%emt 0:03:22]
} Rfe8 {[%emt 0:04:43]} 15. c3 {[%emt 0:04:21]} Ne4 {[%emt 0:04:41]} 16. Qc2 {
[%emt 0:05:25]} Bxf3 {[%emt 0:02:07]} 17. Nxf3 {[%emt 0:00:57]} Qf4 {[%emt 0:
00:00]} 18. Re3 {[%emt 0:08:16]} Ne5 {[%emt 0:19:05]} 19. Nxe5 {[%emt 0:07:46]}
Rxe5 {[%emt 0:00:59]} 20. g3 {[%emt 0:02:36]} Qf6 {[%emt 0:12:21]} 21. Bxe4 {
[%emt 0:03:47]} dxe4 {[%emt 0:00:37]} 22. Rxe4 {[%emt 0:01:20]} Qf5 {[%emt 0:
00:00]} 23. Rae1 {[%emt 0:01:40]} g6 {[%emt 0:01:45]} 24. Qe2 {[%emt 0:06:32]}
Rd5 {[%emt 0:01:28]} 25. c4 {[%emt 0:05:41]} Rd6 {[%emt 0:01:49]} 26. Qe3 {
[%emt 0:01:30]} Qf6 {[%emt 0:02:16]} 27. Rf4 {[%emt 0:03:32]} Qe6 {[%emt 0:00:
00]} 28. Qc3 {[%emt 0:02:04]} Qd7 {[%emt 0:01:10]} 29. Rfe4 {[%emt 0:00:41]}
Rd8 {[%emt 0:01:25]} 30. Re7 {[%emt 0:03:32]} Qc6 {[%emt 0:00:52]} 31. Qb3 {
[%emt 0:01:18]} R6d7 {[%emt 0:02:24]} 32. Re8+ {[%emt 0:02:33]} Rxe8 {[%emt 0:
00:00]} 33. Rxe8+ {[%emt 0:00:04]} Kg7 {[%emt 0:00:07]} 34. Qc3+ {[%emt 0:00:
00]} f6 {[%emt 0:00:16]} 35. Re1 {[%emt 0:00:41]} Qc5 {[%emt 0:01:33]} 36. b3 {
[%emt 0:01:28]} Qf5 {[%emt 0:02:18]} 37. Qb4 {[%emt 0:02:27]} Kf7 {[%emt 0:00:
00]} 38. c5 {[%emt 0:00:55]} Qd5 {[%emt 0:00:35]} 39. Qh4 {[%emt 0:01:23]} Kg7
{[%emt 0:00:31]} 40. Qg4 {[%emt 0:01:28]} f5 {[%emt 0:01:30]} 41. Qb4 {[%emt 0:
00:00]} Kf7 {[%emt 0:06:46]} 42. Qc3 {[%emt 0:00:00]} Qd4 {[%emt 0:03:25]} 43.
Qc2 {[%emt 0:00:00]} Kg7 {[%emt 0:07:58]} 44. a3 {[%emt 0:00:00]} a5 {[%emt 0:
00:00]} 45. Re6 {[%emt 0:00:00]} Kf7 {[%emt 0:01:50]} 46. Rb6 {[%emt 0:00:00]}
Re7 {[%emt 0:01:41]} 47. Rd6 {[%emt 0:00:00]} Qa1+ {[%emt 0:00:52]} 48. Kg2 {
[%emt 0:00:00]} Qe5 {[%emt 0:02:18]} 49. Qc4+ {[%emt 0:00:00]} Kg7 {[%emt 0:00:
00]} 50. b4 {[%emt 0:00:00]} axb4 {[%emt 0:01:15]} 51. axb4 {[%emt 0:00:00]}
Rc7 {[%emt 0:01:36]} 52. Re6 {[%emt 0:00:00]} Qb2 {[%emt 0:01:53]} 53. Re8 {
[%emt 0:01:01]} Rf7 {[%emt 0:01:29]} 54. b5 {[%emt 0:00:08]} Qf6 {[%emt 0:00:
00]} 55. c6 {[%emt 0:01:22]} bxc6 {[%emt 0:00:18]} 56. bxc6 {[%emt 0:00:11]}
Rc7 {[%emt 0:01:06]} 57. Rg8+ {[%emt 0:00:12]} Kh6 {[%emt 0:00:43]} 58. Qf4+ {
[%emt 0:00:08]} Qg5 {[%emt 0:02:35]} 59. Qxc7 {[%emt 0:00:15]} 1-0

[Event "44th Chess Olympiad Women 2022"]
[Site "Chennai"]
[Date "2022.08.05"]
[Round "7.18"]
[White "Mirza, Diana"]
[Black "Raccanello, Marianna"]
[Result "0-1"]
[WhiteElo "1898"]
[BlackElo "2067"]
[Annotator "NA RC"]
[PlyCount "60"]
[EventDate "2022.??.??"]
[TimeControl "60"]

1. d4 {[%emt 0:00:03]} Nf6 {[%emt 0:00:07]} 2. c4 {[%emt 0:00:06]} e6 {[%emt 0:
00:00]} 3. Nc3 {[%emt 0:00:08]} Bb4 {[%emt 0:00:06]} 4. e3 {[%emt 0:00:07]} O-O
{[%emt 0:00:12]} 5. Bd2 {[%emt 0:00:11]} d5 {[%emt 0:00:13]} 6. Nf3 {[%emt 0:
00:00]} b6 {[%emt 0:00:12]} 7. cxd5 {[%emt 0:00:27]} exd5 {[%emt 0:00:09]} 8.
Rc1 {[%emt 0:00:10]} Bb7 {[%emt 0:00:09]} 9. Bd3 {[%emt 0:00:49]} Be7 {[%emt 0:
00:00]} 10. O-O {[%emt 0:06:03]} c5 {[%emt 0:00:43]} 11. Bb1 {[%emt 0:05:49]}
Nc6 {[%emt 0:02:34]} 12. dxc5 {[%emt 0:17:12]} bxc5 {[%emt 0:19:07]} 13. e4 {
[%emt 0:10:52]} Nd4 {[%emt 0:19:57]} 14. exd5 {[%emt 0:12:07]} Nxd5 {[%emt 0:
00:00]} 15. Ne4 {[%emt 0:06:21]} Rc8 {[%emt 0:04:46]} 16. Ne5 {[%emt 0:07:35]}
f6 {[%emt 0:13:39]} 17. Nc4 {[%emt 0:00:42]} f5 {[%emt 0:00:10]} 18. Ng3 {
[%emt 0:02:36]} f4 {[%emt 0:04:18]} 19. Ne2 {[%emt 0:11:13]} f3 {[%emt 0:06:54]
} 20. Nxd4 {[%emt 0:00:06]} cxd4 {[%emt 0:01:56]} 21. gxf3 {[%emt 0:02:42]} Bg5
{[%emt 0:01:52]} 22. Ba5 {[%emt 0:03:51]} Qf6 {[%emt 0:00:41]} 23. Qd3 {
[%emt 0:01:53]} Qh6 {[%emt 0:01:17]} 24. Rcd1 {[%emt 0:06:16]} Nf4 {[%emt 0:00:
00]} 25. Qxh7+ {[%emt 0:01:59]} Qxh7 {[%emt 0:00:04]} 26. Bxh7+ {[%emt 0:00:05]
} Kxh7 {[%emt 0:00:05]} 27. Nd2 {[%emt 0:01:36]} Ne2+ {[%emt 0:00:52]} 28. Kg2
{[%emt 0:00:28]} Bxd2 {[%emt 0:00:06]} 29. Rxd2 {[%emt 0:00:08]} Bxf3+ {
[%emt 0:00:06]} 30. Kh3 {[%emt 0:00:12]} Rc5 {[%emt 0:00:46]} 0-1